bitfinex/quotes_SOLUSD_20250823
["timestamp","ask_amount","ask_price","bid_price","bid_amount"]
[1755926473582,0.60232255,207.53,207.47,23.42943181]
[1755926473810,44.06,207.52,207.51,23.39943181]
[1755926473964,44.02,207.52,207.51,23.39943181]
[1755926474309,44.62235158,207.52,207.51,23.39943181]
[1755926474624,44.60235158,207.52,207.51,23.39943181]
[1755926474904,44.0,207.52,207.51,23.39943181]
[1755926475702,0.60220648,207.57,207.51,24.10943181]
[1755926476017,43.92,207.56,207.52,23.39943181]
[1755926476190,0.60226451,207.55,207.52,23.39943181]
[1755926476803,0.60226451,207.55,207.53,23.39943181]
[1755926476974,0.60226451,207.55,207.52,23.39943181]
[1755926477171,0.60226451,207.55,207.47,0.74]
[1755926477373,36.99502582,207.54,207.47,0.03]
[1755926477589,0.60232255,207.53,207.48,23.39943181]
[1755926477769,1.30232255,207.53,207.48,23.39943181]
[1755926477964,0.60232255,207.53,207.48,23.39943181]
[1755926478280,43.8,207.52,207.48,23.39943181]
[1755926478475,0.6023806,207.51,207.49,23.39943181]
[1755926478883,24.09943181,207.56,207.47,0.03]
[1755926478884,0.60226451,207.55,207.5,24.10943181]
[1755926479087,0.60226451,207.55,207.54,23.39943181]
[1755926479277,44.36226451,207.55,207.54,23.39943181]
[1755926479777,44.36226451,207.55,207.51,0.71]
[1755926479778,44.36226451,207.55,207.53,23.39943181]
[1755926479971,44.36226451,207.55,207.54,23.39943181]
[1755926480211,44.36226451,207.55,207.53,23.39943181]
[1755926480492,43.72,207.54,207.52,23.39943181]
[1755926480693,0.60232255,207.53,207.52,23.39943181]
[1755926481200,43.72,207.53,207.52,23.39943181]
[1755926481386,43.68,207.53,207.52,23.39943181]
[1755926481581,0.60229353,207.54,207.52,23.39943181]
[1755926481782,0.60229353,207.54,207.53,24.10943181]
[1755926482088,43.68,207.54,207.53,24.10943181]
[1755926482474,43.68,207.54,207.53,23.39943181]
[1755926483604,43.68,207.54,207.53,24.10943181]
[1755926484600,43.68,207.54,207.53,23.39943181]
[1755926484797,0.66220648,207.57,207.53,24.10943181]
[1755926485001,0.06,207.57,207.56,23.39943181]
[1755926485396,0.06,207.57,207.56,24.10943181]
[1755926485574,0.06,207.57,207.56,27.18960713]
[1755926486175,0.06,207.57,207.49,15.16818]
[1755926486376,0.06,207.57,207.5,3.07993788]
[1755926486594,1.30223549,207.56,207.5,23.39943181]
[1755926487005,43.66,207.55,207.47,0.03]
[1755926487201,44.26229353,207.54,207.51,23.39943181]
[1755926487505,44.26229353,207.54,207.52,23.39943181]
[1755926487803,43.66,207.53,207.52,23.39943181]
[1755926490478,43.66,207.53,207.47,0.03]
[1755926490479,81.31502582,207.53,207.47,0.03]
[1755926490686,0.60223549,207.56,207.47,0.03]
[1755926490687,44.26235158,207.52,207.48,23.39943181]
[1755926491012,44.92235158,207.52,207.47,23.42943181]
[1755926491385,44.92235158,207.52,207.48,23.39943181]
[1755926491585,44.92235158,207.52,207.49,23.39943181]
[1755926492008,1.26235158,207.52,207.49,23.39943181]
[1755926492207,44.32,207.51,207.47,0.03]
[1755926492381,0.60240963,207.5,207.47,0.03]
[1755926492721,44.32,207.51,207.47,0.03]
[1755926492722,43.66,207.51,207.49,23.39943181]
[1755926492889,43.66,207.51,207.5,23.39943181]
[1755926493404,43.66,207.51,207.49,0.71]
[1755926493588,43.66,207.51,207.5,23.39943181]
[1755926493788,43.66,207.51,207.48,26.0]
[1755926494096,1.26240963,207.5,207.47,0.03]
[1755926494703,1.26240963,207.5,207.48,0.03]
[1755926495597,0.60240963,207.5,207.48,23.42943181]
[1755926495800,0.60240963,207.5,207.48,0.03]
[1755926495996,13.59559401,207.49,207.48,0.03]
[1755926496205,14.25559401,207.49,207.48,0.03]
[1755926496385,0.60240963,207.5,207.48,0.03]
[1755926496586,44.26243867,207.49,207.48,23.42943181]
[1755926496778,44.26243867,207.49,207.48,0.03]
[1755926499005,58.51803268,207.49,207.48,0.03]
[1755926499992,14.85803268,207.49,207.48,0.03]
[1755926500201,58.51803268,207.49,207.48,0.03]
[1755926500395,57.85803268,207.49,207.48,0.03]
[1755926501004,44.26243867,207.49,207.48,0.03]
[1755926501418,44.24243867,207.49,207.48,23.42943181]
[1755926501626,44.24243867,207.49,207.48,26.54443667]
[1755926501793,0.60243867,207.49,207.48,26.54443667]
[1755926502000,43.64,207.49,207.48,26.54443667]
[1755926502329,43.64,207.49,207.48,23.42943181]
[1755926502523,43.64,207.49,207.48,26.54299548]
[1755926502692,43.64,207.49,207.48,26.54253405]
[1755926503799,0.60235158,207.52,207.48,26.54253405]
[1755926504105,43.64,207.51,207.49,23.39943181]
[1755926504425,0.60240963,207.5,207.49,23.39943181]
[1755926504597,43.64,207.5,207.49,26.51245718]
[1755926505901,43.64,207.5,207.49,23.39943181]
[1755926506100,43.64,207.5,207.48,0.03]
[1755926506320,43.64,207.5,207.49,15.80643933]
[1755926506520,43.64,207.5,207.48,0.03]
[1755926507825,43.64,207.5,207.48,15.83643933]
[1755926508200,43.64,207.5,207.49,15.80643933]
[1755926508405,43.64,207.5,207.49,18.94797202]
[1755926510416,43.64,207.5,207.49,18.9477942]
[1755926510740,43.64,207.5,207.49,3.14135487]
[1755926510895,43.64,207.5,207.48,0.03]
[1755926510896,13.59559401,207.49,207.48,0.03]
[1755926511206,0.60243867,207.49,207.48,0.03]
[1755926511423,44.22243867,207.49,207.48,0.03]
[1755926511813,0.60243867,207.49,207.48,0.03]
[1755926512134,43.62,207.49,207.48,0.03]
[1755926514039,44.28,207.49,207.48,0.03]
[1755926514599,57.85559401,207.49,207.48,0.03]
[1755926515028,58.45803268,207.49,207.48,0.03]
[1755926515709,14.85803268,207.49,207.48,0.03]
[1755926515910,57.85559401,207.49,207.48,0.03]
[1755926516424,13.59559401,207.49,207.48,0.03]
[1755926516611,57.19559401,207.49,207.48,0.03]
[1755926517633,57.91559401,207.49,207.48,0.03]
[1755926517811,57.19559401,207.49,207.48,0.03]
[1755926518202,57.91559401,207.49,207.48,0.03]
[1755926518425,14.31559401,207.49,207.48,0.03]
[1755926518625,14.31559401,207.49,207.48,15.83643933]
[1755926518626,57.19559401,207.49,207.48,15.83643933]
[1755926518816,57.19559401,207.49,207.48,0.03]
[1755926519134,43.6,207.49,207.48,18.98175765]
[1755926519340,43.6,207.49,207.48,15.83643933]
[1755926519637,43.6,207.49,207.48,18.98143581]
[1755926520143,43.6,207.49,207.48,18.98239394]
[1755926520313,0.60235158,207.52,207.48,0.03]
[1755926520522,57.89559401,207.51,207.48,0.03]
[1755926520822,13.59559401,207.49,207.48,0.03]
[1755926521020,0.60240963,207.5,207.48,15.83643933]
[1755926521222,0.60240963,207.5,207.49,15.80643933]
[1755926521516,44.18240963,207.5,207.49,18.95237409]
[1755926521904,0.60240963,207.5,207.49,18.95237409]
[1755926522140,43.58,207.5,207.49,18.95237409]
[1755926523121,0.60235158,207.52,207.49,3.14593476]
[1755926523430,57.17559401,207.51,207.5,15.80643933]
[1755926524040,57.15559401,207.51,207.49,15.80643933]
[1755926524216,0.60240963,207.5,207.49,15.80643933]
[1755926524420,0.60240963,207.5,207.48,15.83643933]
[1755926526559,13.59559401,207.54,207.49,18.99517699]
[1755926526707,13.59559401,207.52,207.49,15.80643933]
[1755926526908,0.6023806,207.51,207.49,15.80643933]
[1755926527135,43.56,207.5,207.49,15.80643933]
[1755926527439,0.06,207.62,207.49,16.51643933]
[1755926527641,0.06,207.62,207.48,5.22209834]
[1755926527642,0.06,207.62,207.56,41.80643933]
[1755926527846,0.06,207.62,207.5,3.70658573]
[1755926527847,43.6,207.57,207.53,15.80643933]
[1755926528143,0.06,207.57,207.56,15.80643933]
[1755926528441,0.06,207.57,207.56,45.51190035]
[1755926528610,0.04164631,207.6,207.59,41.80643933]
[1755926528934,0.06,207.62,207.59,41.80643933]
[1755926528935,0.06,207.62,207.59,45.48006933]
[1755926529137,0.06,207.7,207.61,15.80643933]
[1755926529447,0.06,207.7,207.6,3.67363]
[1755926529448,0.06,207.7,207.69,15.80643933]
[1755926529612,0.06,207.7,207.69,18.98958413]
[1755926529807,0.06,207.7,207.69,18.98977155]
[1755926530012,0.06,207.75,207.72,26.0]
[1755926530310,0.06,207.75,207.74,15.80643933]
[1755926530728,0.06,207.75,207.74,19.46123405]
[1755926531620,0.06,207.78,207.74,19.46123405]
[1755926531822,0.06,207.78,207.77,15.80643933]
[1755926532140,0.06,207.78,207.77,18.98123405]
[1755926532308,0.06,207.78,207.77,19.46123405]
[1755926532510,0.06,207.8,207.79,26.0]
[1755926532709,0.06,207.8,207.79,44.98123405]
[1755926533013,0.06,207.8,207.79,45.46123405]
[1755926534143,0.06,207.81,207.79,45.46123405]
[1755926534316,0.06,207.81,207.78,5.18112903]
[1755926534317,0.06,207.83,207.82,15.80643933]
[1755926534519,0.06,207.87,207.85,26.0]
[1755926534825,0.06,207.87,207.86,15.80643933]
[1755926535023,0.06,207.87,207.86,17.73150633]
[1755926535720,0.06,207.87,207.86,1.925067]
[1755926536043,0.78,207.87,207.83,15.80643933]
[1755926536252,0.36077856,207.86,207.84,15.80643933]
[1755926536459,0.06,207.87,207.81,26.0]
[1755926536618,0.72,207.86,207.82,3.35911091]
[1755926536962,0.72,207.85,207.84,15.80643933]
[1755926537253,0.42077856,207.87,207.84,15.80643933]
[1755926537626,0.72,207.86,207.84,15.80643933]
[1755926537952,0.72,207.85,207.8,15.80643933]
[1755926538240,1.08077856,207.84,207.8,15.80643933]
[1755926538444,13.59559401,207.82,207.79,1.925623]
[1755926538653,1.08077856,207.81,207.77,15.80643933]
[1755926538826,1.08077856,207.81,207.63,43.48]
[1755926538827,0.72,207.8,207.76,15.80643933]
[1755926539021,0.36077856,207.81,207.76,15.80643933]
[1755926539344,0.36077856,207.81,207.73,14.445648]
[1755926539345,0.72,207.79,207.77,15.80643933]
[1755926539547,43.46,207.78,207.77,15.80643933]
[1755926539915,44.18,207.78,207.73,14.445648]
[1755926540118,13.59559401,207.85,207.73,14.445648]
[1755926540119,0.36077856,207.84,207.73,0.48]
[1755926540420,0.06,207.87,207.73,0.48]
[1755926540421,0.06,207.87,207.86,26.0]
[1755926540627,0.06,207.87,207.86,41.80643933]
[1755926540926,0.78,207.87,207.83,15.80643933]
[1755926541160,0.36077856,207.86,207.82,1.925345]
[1755926541327,0.36077856,207.86,207.85,15.80643933]
[1755926541548,0.06,207.87,207.85,15.80643933]
[1755926541851,0.06,207.87,207.86,15.80643933]
[1755926543544,43.5,207.87,207.86,15.80643933]
[1755926544629,44.22,207.87,207.83,0.03]
[1755926544844,1.08077856,207.86,207.83,0.03]
[1755926545020,0.06,207.87,207.85,15.80643933]
[1755926545225,0.06,207.87,207.86,15.80643933]
[1755926545454,43.48,207.87,207.86,15.80643933]
[1755926545749,0.06,207.9,207.86,45.63214371]
[1755926545939,0.06,207.9,207.89,15.80643933]
[1755926546449,0.06,207.9,207.89,30.24166133]
[1755926546752,0.1,207.91,207.89,49.87023282]
[1755926546920,43.42,208.01,207.98,15.80643933]
[1755926547124,44.14,208.01,208.0,15.80643933]
[1755926547950,44.14,208.01,207.99,15.80643933]
[1755926548124,1.07077856,208.0,207.96,15.80643933]
[1755926548463,0.71,207.99,207.96,15.80643933]
[1755926548662,0.71,207.99,207.98,15.80643933]
[1755926548838,13.59559401,208.06,207.98,15.80643933]
[1755926548839,0.71,208.09,207.98,19.13757035]
[1755926549150,43.78077856,208.08,208.05,15.80643933]
[1755926549518,0.71,208.07,208.05,15.80643933]
[1755926549717,0.71,208.07,208.0,26.0]
[1755926549718,0.71,208.12,208.06,15.80643933]
[1755926549945,43.78077856,208.11,208.08,15.80643933]
[1755926550152,0.71,208.1,208.08,15.80643933]
[1755926550530,43.42,208.11,208.09,15.80643933]
[1755926550741,43.42,208.11,208.1,15.80643933]
[1755926550941,43.4,208.11,208.1,15.80643933]
[1755926551326,0.71,208.14,208.1,15.80643933]
[1755926551655,13.59559401,208.19,208.1,15.80643933]
[1755926551656,43.4,208.11,208.1,14.421343]
[1755926551830,43.4,208.12,208.1,15.80643933]
[1755926552145,43.4,208.14,208.11,15.80643933]
[1755926552753,1.07077856,208.13,208.1,14.421343]
[1755926552922,0.71,208.12,208.07,15.80643933]
[1755926553137,1.07077856,208.12,208.08,15.80643933]
[1755926553341,0.71,208.17,208.11,15.80643933]
[1755926553518,43.4,208.16,208.12,15.80643933]
[1755926553723,43.4,208.16,208.13,15.80643933]
[1755926554144,43.4,208.16,208.1,26.0]
[1755926554340,0.71,208.19,208.14,15.80643933]
[1755926554552,0.36077856,208.24,208.1,26.0]
[1755926554553,0.36077856,208.24,208.18,15.80643933]
[1755926554749,43.74077856,208.23,208.16,26.0]
[1755926554946,43.38,208.23,208.17,15.80643933]
[1755926555260,1.07077856,208.22,208.17,30.22154633]
[1755926555429,0.71,208.21,208.15,15.80643933]
[1755926555625,16.16721789,208.2,208.11,26.0]
[1755926555824,0.71,208.19,208.16,14.417879]
[1755926556149,13.59559401,208.22,208.1,4.79142766]
[1755926556150,1.07077856,208.18,208.1,4.79142766]
[1755926556355,1.07077856,208.18,208.06,0.48]
[1755926556356,1.07077856,208.18,208.14,1.922661]
[1755926556660,0.36077856,208.18,208.14,1.922661]
[1755926556854,0.71,208.17,208.14,1.922661]
[1755926557063,43.72077856,208.16,208.11,15.80643933]
[1755926557226,44.07,208.15,208.12,1.922846]
[1755926557427,0.36077856,208.14,208.04,5.36182368]
[1755926557727,0.36077856,208.14,208.1,14.42273]
[1755926557922,0.36077856,208.14,208.08,15.80643933]
[1755926557923,0.71,208.13,208.08,15.80643933]
[1755926558127,44.43077856,208.12,208.07,15.80643933]
[1755926558352,0.71,208.14,208.1,15.80643933]
[1755926558534,43.36,208.13,208.1,15.80643933]
[1755926558735,15.80643933,208.11,208.08,14.423423]
[1755926558956,15.80643933,208.09,208.08,14.423423]
[1755926559157,15.80643933,208.1,208.08,14.423423]
[1755926559337,43.36,208.09,208.08,14.423423]
[1755926559546,0.71,208.09,208.04,15.80643933]
[1755926559727,0.71,208.15,208.08,15.80643933]
[1755926559929,43.70077856,208.14,208.08,15.80643933]
[1755926560177,43.70077856,208.14,208.09,15.80643933]
[1755926560376,44.05,208.14,208.05,0.48]
[1755926560659,16.87721789,208.13,208.07,15.80643933]
[1755926560841,1.07077856,208.13,208.07,15.80643933]
[1755926561046,16.87721789,208.13,208.07,15.80643933]
[1755926561252,1.07077856,208.13,208.07,15.80643933]
[1755926561458,1.07077856,208.13,208.05,41.80643933]
[1755926561766,15.80643933,208.08,207.9,15.80643933]
[1755926561968,13.59559401,208.09,207.9,15.80643933]
[1755926561969,60.21721789,208.07,208.0,15.80643933]
[1755926562269,15.80643933,208.03,207.93,0.48]
[1755926562569,15.80643933,208.01,207.97,14.431056]
[1755926562868,43.34,208.0,207.97,14.431056]
[1755926563449,43.34,207.99,207.97,30.23749533]
[1755926563650,43.34,207.98,207.97,14.431056]
[1755926563962,43.34,207.98,207.9,20.62202191]
[1755926563963,0.71,207.98,207.9,4.81558258]
[1755926564167,0.36077856,207.97,207.96,14.43175]
[1755926564329,16.87721789,207.97,207.96,14.43175]
[1755926564536,30.4728119,207.97,207.89,15.80643933]
[1755926564735,16.87721789,207.97,207.9,15.80643933]
[1755926564951,43.32,207.96,207.91,15.80643933]
[1755926565275,44.03,207.96,207.92,14.435917]
[1755926565942,43.34,207.95,207.92,14.435917]
[1755926566152,43.34,207.95,207.88,0.03]
[1755926566153,15.80643933,207.93,207.88,0.03]
[1755926566468,0.36077856,207.92,207.88,0.03]
[1755926566758,15.80643933,207.9,207.88,0.03]
[1755926566928,43.32,207.89,207.88,0.03]
[1755926567132,44.03,207.89,207.88,0.03]
[1755926567357,59.83643933,207.89,207.88,0.03]
[1755926567833,43.32,207.89,207.88,0.03]
[1755926568346,15.80643933,207.9,207.88,0.03]
[1755926568541,43.32,207.89,207.88,0.03]
[1755926568850,60.19721789,207.89,207.88,0.03]
[1755926569035,59.83643933,207.89,207.88,0.03]
[1755926569235,60.64,208.0,207.88,0.03]
[1755926569236,0.36077856,207.97,207.88,16.31643933]
[1755926569449,0.36077856,207.99,207.94,15.80643933]
[1755926569631,43.32,207.98,207.95,15.80643933]
[1755926569830,43.32,207.98,207.92,26.0]
[1755926569831,43.32,207.98,207.97,15.80643933]
[1755926570451,43.32,207.98,207.97,23.4330113]
[1755926570831,1.07077856,208.03,207.97,23.4330113]
[1755926571032,43.32,208.02,207.99,23.4330113]
[1755926571458,0.71,208.08,208.01,23.4330113]
[1755926571663,43.68077856,208.07,208.03,23.4330113]
[1755926571872,10.0,208.16,207.96,14.911056]
[1755926571873,0.77,208.18,208.04,40.31827163]
[1755926572040,0.06,208.18,208.16,23.4330113]
[1755926572761,0.06,208.18,208.16,37.8515823]
[1755926573146,0.06,208.18,208.17,3.34952926]
[1755926573349,0.06,208.18,208.16,37.8515823]
[1755926573665,0.06,208.18,208.17,23.4330113]
[1755926573874,0.06,208.18,208.16,37.8515823]
[1755926574041,0.06,208.18,208.16,23.4330113]
[1755926574557,0.06,208.18,208.11,26.0]
[1755926574861,0.06,208.18,208.15,37.8529693]
[1755926575177,0.06,208.18,208.17,23.4330113]
[1755926575678,0.06,208.18,208.16,23.4330113]
[1755926576740,0.77,208.18,208.15,14.419958]
[1755926577058,0.06,208.18,208.15,37.8529693]
[1755926577970,0.06,208.18,208.16,23.4330113]
[1755926578849,0.06,208.18,208.17,23.4330113]
[1755926580275,0.06,208.18,208.15,14.419958]
[1755926580482,0.06,208.18,208.17,23.4330113]
[1755926581086,0.06,208.18,208.17,14.417878]
[1755926581275,43.36,208.18,208.17,37.8508893]
[1755926581475,43.36,208.18,208.17,23.4330113]
[1755926582762,43.36,208.18,208.17,37.8508893]
[1755926583581,43.36,208.18,208.17,23.4330113]
[1755926583783,43.36,208.18,208.09,0.48]
[1755926584070,43.36,208.18,208.16,23.4330113]
[1755926584274,43.36,208.18,208.17,23.4330113]
[1755926586110,0.06,208.18,208.17,23.9130113]
[1755926586276,0.06,208.19,208.17,23.9130113]
[1755926586597,0.06,208.19,208.18,49.8530113]
[1755926587108,0.06,208.21,208.2,49.4330113]
[1755926587274,0.06,208.21,208.2,52.48879366]
[1755926587477,0.06,208.21,208.2,52.84879366]
[1755926588168,0.06,208.21,208.2,49.7930113]
[1755926588890,0.06,208.21,208.2,52.84772541]
[1755926589097,0.06,208.21,208.2,49.7930113]
[1755926589398,0.06,208.21,208.2,52.84532586]
[1755926589777,0.06,208.21,208.2,3.41231456]
[1755926590100,0.06,208.23,208.2,26.84532586]
[1755926590402,0.06,208.23,208.22,26.0]
[1755926590598,0.06,208.23,208.22,41.68788012]
[1755926591116,0.06,208.23,208.22,26.0]
[1755926591287,0.06,208.23,208.22,41.68788012]
[1755926591897,0.1,208.28,208.25,26.0]
[1755926592101,0.1,208.28,208.27,15.68788012]
[1755926593802,0.75,208.28,208.27,15.68788012]
[1755926594285,0.1,208.28,208.27,15.68788012]
[1755926594492,0.1,208.28,208.22,4.82616414]
[1755926594712,0.1,208.28,208.27,15.68788012]
[1755926595594,0.65,208.4,208.3,26.0]
[1755926595823,43.91,208.4,208.37,15.68788012]
[1755926595992,0.65,208.39,208.36,15.68788012]
[1755926596187,0.65,208.38,208.36,15.68788012]
[1755926596384,43.26,208.4,208.3,26.0]
[1755926596610,13.59559401,208.39,208.35,15.68788012]
[1755926596908,13.59559401,208.37,208.33,15.68788012]
[1755926597097,0.65,208.36,208.34,15.68788012]
[1755926597293,0.65,208.35,208.34,15.68788012]
[1755926597706,0.65,208.35,208.29,26.0]
[1755926598505,13.59559401,208.39,208.29,26.0]
[1755926598506,0.65,208.38,208.29,26.0]
[1755926598711,0.65,208.38,208.37,15.68788012]
[1755926599304,13.59559401,208.42,208.29,26.3]
[1755926599305,43.24,208.4,208.29,26.3]
[1755926599502,43.24,208.4,208.38,15.68788012]
[1755926599803,0.65,208.39,208.38,15.68788012]
[1755926600690,13.59559401,208.38,208.24,0.48021513]
[1755926600892,29.28347413,208.36,208.25,0.3]
[1755926601201,15.68788012,208.34,208.21,0.3]
[1755926601521,0.65,208.33,208.27,15.68788012]
[1755926601725,15.68788012,208.3,208.24,15.68788012]
[1755926602021,0.65,208.33,208.26,15.68788012]
[1755926602022,13.59559401,208.31,208.26,15.68788012]
[1755926602228,43.22,208.29,208.22,0.3]
[1755926602404,43.22,208.31,208.22,0.3]
[1755926602608,13.59559401,208.3,208.18,0.3]
[1755926602809,14.24559401,208.3,208.18,0.3]
[1755926603006,0.65,208.3,208.18,0.3]
[1755926603205,0.65,208.3,208.19,26.0]
[1755926603411,0.65,208.3,208.27,15.68788012]
[1755926603720,0.65,208.29,208.26,15.68788012]
[1755926604425,0.65,208.29,208.27,15.68788012]
[1755926604592,43.22,208.31,208.28,15.68788012]
[1755926604793,43.87,208.31,208.28,15.68788012]
[1755926605018,43.87,208.31,208.29,15.68788012]
[1755926605797,43.87,208.31,208.21,0.3]
[1755926605798,0.65,208.3,208.28,15.68788012]
[1755926606002,43.22,208.31,208.29,15.68788012]
[1755926606309,43.22,208.31,208.3,15.68788012]
[1755926606824,43.22,208.31,208.23,26.3]
[1755926606825,43.22,208.31,208.28,15.68788012]
[1755926607030,43.22,208.31,208.17,10.0]
[1755926607031,0.65,208.3,208.27,15.68788012]
[1755926607195,0.71,208.29,208.24,15.68788012]
[1755926607395,43.93,208.28,208.24,15.68788012]
[1755926607595,43.93,208.28,208.25,15.68788012]
[1755926607823,0.71,208.27,208.18,0.3]
[1755926608001,0.71,208.27,208.24,15.68788012]
[1755926608340,0.71,208.26,208.23,15.68788012]
[1755926608499,0.71,208.26,208.2,26.0]
[1755926608815,0.71,208.26,208.24,15.68788012]
[1755926608999,14.30559401,208.3,208.19,26.3]
[1755926609206,0.71,208.33,208.28,15.68788012]
[1755926609417,0.71,208.31,208.28,15.68788012]
[1755926609827,13.59559401,208.33,208.27,15.68788012]
[1755926610037,0.71,208.3,208.28,15.68788012]
[1755926610399,0.71,208.3,208.23,26.03]
[1755926610400,13.59559401,208.33,208.29,15.68788012]
[1755926610607,0.71,208.32,208.29,15.68788012]
[1755926611130,13.59559401,208.33,208.29,15.68788012]
[1755926611316,0.71,208.31,208.29,15.68788012]
[1755926611501,0.71,208.3,208.29,15.68788012]
[1755926612404,14.30559401,208.33,208.29,15.68788012]
[1755926612636,0.71,208.32,208.29,15.68788012]
[1755926612815,13.59559401,208.33,208.29,15.68788012]
[1755926613012,0.71,208.32,208.29,15.68788012]
[1755926613206,0.71,208.31,208.29,15.68788012]
[1755926613407,0.71,208.3,208.27,15.68788012]
[1755926613624,29.28347413,208.33,208.25,15.68788012]
[1755926613625,0.71,208.29,208.25,15.68788012]
[1755926613803,43.91,208.28,208.25,15.68788012]
[1755926614003,0.71,208.27,208.25,15.68788012]
[1755926614207,0.71,208.27,208.24,15.68788012]
[1755926614502,43.2,208.28,208.24,15.68788012]
[1755926614735,0.71,208.26,208.24,15.68788012]
[1755926615037,0.71,208.25,208.23,0.03]
[1755926615503,0.71,208.24,208.23,0.03]
[1755926616435,0.71,208.31,208.23,18.81661187]
[1755926616667,43.2,208.3,208.27,15.68788012]
[1755926616967,0.71,208.29,208.27,15.68788012]
[1755926617272,43.2,208.3,208.23,0.03]
[1755926617273,0.71,208.28,208.24,15.68788012]
[1755926617432,13.59559401,208.29,208.24,15.68788012]
[1755926617638,0.71,208.27,208.25,18.78681043]
[1755926617847,0.71,208.27,208.25,15.68788012]
[1755926618463,0.71,208.26,208.23,0.03]
[1755926618638,43.18,208.25,208.23,0.03]
[1755926618838,43.89,208.25,208.23,0.03]
[1755926619052,0.71,208.24,208.23,0.03]
[1755926619452,0.71,208.24,208.23,3.13288841]
[1755926620235,43.18,208.25,208.23,18.82076853]
[1755926620468,43.18,208.25,208.23,15.71788012]
[1755926620647,43.89,208.25,208.23,15.71788012]
[1755926621158,43.89,208.25,208.23,0.03]
[1755926621475,43.18,208.25,208.23,0.03]
[1755926621643,0.71,208.24,208.23,0.03]
[1755926621840,43.18,208.25,208.23,18.822918]
[1755926622069,43.89,208.25,208.23,15.71788012]
[1755926622248,14.30559401,208.24,208.09,0.48056129]
[1755926622562,13.59559401,208.29,208.14,15.68788012]
[1755926622563,13.59559401,208.2,208.14,15.68788012]
[1755926622740,13.59559401,208.18,208.15,3.10723553]
[1755926622939,0.71,208.17,208.15,3.10723553]
[1755926623273,13.59559401,208.19,208.16,18.79511565]
[1755926623574,13.59559401,208.19,208.07,0.2]
[1755926623575,13.59559401,208.17,208.07,0.2]
[1755926623867,0.28432314,208.16,208.07,15.88788012]
[1755926624040,29.28347413,208.14,208.07,15.88788012]
[1755926624236,13.59559401,208.09,208.07,0.2]
[1755926624433,56.75559401,208.08,208.07,0.2]
[1755926624734,57.46559401,208.08,208.07,0.2]
[1755926625069,73.15347413,208.08,208.07,0.2]
[1755926625836,73.43779727,208.08,208.07,0.2]
[1755926626275,13.87991715,208.07,208.02,0.03]
[1755926626437,29.56779727,208.03,208.02,0.03]
[1755926626636,0.28432314,208.01,207.92,15.68788012]
[1755926626847,29.28347413,207.96,207.89,18.19411687]
[1755926627078,13.59559401,207.94,207.91,15.68788012]
[1755926627393,13.59559401,207.94,207.86,0.03]
[1755926627530,13.59559401,207.92,207.86,15.71788012]
[1755926627737,13.59559401,207.97,207.91,15.68788012]
[1755926627935,13.59559401,208.01,207.96,15.68788012]
[1755926628160,10.0,208.11,207.91,0.56]
[1755926628161,13.59559401,208.05,207.97,0.56]
[1755926628357,13.59559401,208.05,207.93,26.0]
[1755926628560,43.16,208.04,207.94,0.56]
[1755926629251,43.18,208.03,207.94,7.4902102]
[1755926629453,43.18,208.03,208.0,15.68788012]
[1755926629781,0.71,208.11,208.02,15.68788012]
[1755926630068,43.16,208.1,208.03,0.56]
[1755926630254,43.16,208.09,208.03,0.56]
[1755926630864,43.16,208.09,207.98,26.48081546]
[1755926631170,43.16,208.09,208.08,15.68788012]
[1755926632351,43.16,208.09,208.08,26.52523942]
[1755926634344,2.57070484,208.38,208.11,26.0]